[Event "EYCC Open-U12 2019"]
[Site "Bratislava"]
[Date "2019.08.06"]
[Round "5.5"]
[White "Samadov, Read"]
[Black "Chyndygyr, Tamerlan"]
[Result "1-0"]
[ECO "A57"]
[WhiteElo "2230"]
[BlackElo "2018"]
[Annotator "NA"]
[PlyCount "124"]
[EventDate "2019.08.02"]
[EventType "swiss"]
[EventCountry "SVK"]
[SourceTitle "playchess.com"]
[Source "ChessBase"]
[SourceQuality "1"]
[TimeControl "40/5400+30:1800+30"]

1. d4 {[%emt 0:00:00]} Nf6 {[%emt 0:00:00]} 2. c4 {[%emt 0:00:00]} c5 {[%emt 0:00:00]} 3. d5 {[%emt 0:00:14]} b5 {[%emt 0:00:33]} 4. cxb5 {[%emt 0:00:14]} a6 {[%emt 0:00:07]} 5. b6 {[%emt 0:00:26]} d6 {[%emt 0:00:11]} 6. Nc3 {[%emt 0:00:23]} Nbd7 {[%emt 0:00:18]} 7. e4 {[%emt 0:01:53]} g6 {[%emt 0:00:52]} 8. Nf3 {[%emt 0:00:33]} Bg7 {[%emt 0:00:11]} 9. Be2 {[%emt 0:00:38]} O-O {[%emt 0:01:50]} 10. O-O {[%emt 0:03:57]} Qxb6 {[%emt 0:03:53]} 11. Nd2 {[%emt 0:12:50]} Rb8 {[%emt 0:03:25]} 12. Nc4 {[%emt 0:02:04]} Qc7 {[%emt 0:04:56]} 13. Bf4 {[%emt 0:03:22]} Nb6 {[%emt 0:03:50]} 14. Ne3 {[%emt 0:01:30]} Re8 {[%emt 0:01:35]} 15. Rc1 {[%emt 0:11:50]} Na8 {[%emt 0:16:33]} 16. b3 {[%emt 0:05:59]} Rd8 {[%emt 0:11:56]} 17. Nc4 {[%emt 0:06:57]} Nd7 {[%emt 0:01:30]} 18. Qd2 {[%emt 0:02:13]} a5 {[%emt 0:05:52]} 19. a4 {[%emt 0:04:42]} Bxc3 {[%emt 0:01:09]} 20. Rxc3 {[%emt 0:01:36]} Rb4 {[%emt 0:03:26]} 21. f3 {[%emt 0:06:26]} Qa7 {[%emt 0:03:22]} 22. Re1 {[%emt 0:05:17]} Nab6 {[%emt 0:04:27]} 23. Ne3 {[%emt 0:09:00]} Ba6 {[%emt 0:00:30]} 24. Bxa6 {[%emt 0:01:42]} Qxa6 {[%emt 0:00:04]} 25. Nc2 {[%emt 0:00:13]} c4 {[%emt 0:03:49]} 26. Nxb4 {[%emt 0:00:50]} axb4 {[%emt 0:00:04]} 27. Rcc1 {[%emt 0:00:24]} c3 {[%emt 0:01:15]} 28. Qd4 {[%emt 0:02:45]} Qa5 {[%emt 0:00:30]} 29. Bh6 {[%emt 0:03:48]} f6 {[%emt 0:02:48]} 30. Be3 {[%emt 0:00:53]} Rc8 {[%emt 0:01:50]} 31. Rc2 {[%emt 0:01:27]} Ra8 {[%emt 0:10:32]} 32. Rb1 {[%emt 0:01:22]} Kf7 {[%emt 0:03:06]} 33. Bf2 {[%emt 0:02:19]} Rc8 {[%emt 0:01:00]} 34. h4 {[%emt 0:01:51]} Na8 {[%emt 0:01:59]} 35. Qa7 {[%emt 0:02:23]} Qxa7 {[%emt 0:00:06]} 36. Bxa7 {[%emt 0:00:02]} Nc7 {[%emt 0:00:13]} 37. Bd4 {[%emt 0:01:34]} Na6 {[%emt 0:01:02]} 38. Kf2 {[%emt 0:00:27]} Nac5 {[%emt 0:02:12]} 39. Ke3 {[%emt 0:01:20]} e5 {[%emt 0:03:14]} 40. dxe6+ {[%emt 0:00:00]} Kxe6 {[%emt 0:00:00]} 41. a5 {[%emt 0:09:40]} Na6 {[%emt 0:04:02]} 42. g4 {[%emt 0:08:40]} Re8 {[%emt 0:02:17]} 43. Re2 {[%emt 0:03:05]} Rc8 {[%emt 0:02:26]} 44. f4 {[%emt 0:02:19]} d5 {[%emt 0:03:48]} 45. f5+ {[%emt 0:01:59]} Kd6 {[%emt 0:00:09]} 46. fxg6 {[%emt 0:02:39]} hxg6 {[%emt 0:00:07]} 47. exd5 {[%emt 0:00:55]} Kxd5 {[%emt 0:00:19]} 48. Kd3 {[%emt 0:00:29]} Ne5+ {[%emt 0:08:19]} 49. Bxe5 {[%emt 0:00:18]} fxe5 {[%emt 0:00:03]} 50. Kc2 {[%emt 0:02:38]} e4 {[%emt 0:01:23]} 51. h5 {[%emt 0:03:31]} gxh5 {[%emt 0:00:38]} 52. gxh5 {[%emt 0:00:00]} Rh8 {[%emt 0:00:01]} 53. Rh1 {[%emt 0:00:46]} Rh6 {[%emt 0:00:02]} 54. Rg2 {[%emt 0:00:30]} Nc5 {[%emt 0:01:39]} 55. Rg6 {[%emt 0:00:30]} Rh8 {[%emt 0:03:05]} 56. Rg5+ {[%emt 0:00:59]} Kd4 {[%emt 0:00:26]} 57. h6 {[%emt 0:00:27]} Rf8 {[%emt 0:00:39]} 58. Rg2 {[%emt 0:00:49]} Nd3 {[%emt 0:04:03]} 59. h7 {[%emt 0:00:40]} Ke3 {[%emt 0:00:26]} 60. Rg3+ {[%emt 0:00:57]} Kf2 {[%emt 0:05:02]} 61. Rg8 {[%emt 0:00:13]} Ke3 62. Rg3+ Ke2 1-0

[Event "EYCC Open-U12 2019"]
[Site "Bratislava"]
[Date "2019.08.06"]
[Round "5.6"]
[White "Vagman, Roy"]
[Black "Fiszer, Bartosz"]
[Result "1/2-1/2"]
[ECO "B23"]
[WhiteElo "1941"]
[BlackElo "2124"]
[Annotator "NA"]
[PlyCount "115"]
[EventDate "2019.08.02"]
[EventType "swiss"]
[EventCountry "SVK"]
[SourceTitle "playchess.com"]
[Source "ChessBase"]
[SourceQuality "1"]
[TimeControl "40/5400+30:1800+30"]

1. e4 {[%emt 0:00:00]} c5 {[%emt 0:00:00]} 2. Nc3 {[%emt 0:00:00]} Nc6 {[%emt 0:00:00]} 3. Nge2 {[%emt 0:00:30]} Nf6 {[%emt 0:00:08]} 4. g3 {[%emt 0:01:04]} d5 {[%emt 0:01:29]} 5. exd5 {[%emt 0:00:44]} Nd4 {[%emt 0:00:22]} 6. Bg2 {[%emt 0:02:58]} Bg4 {[%emt 0:00:41]} 7. h3 {[%emt 0:03:43]} Bf3 {[%emt 0:00:19]} 8. Bxf3 {[%emt 0:00:21]} Nxf3+ {[%emt 0:00:02]} 9. Kf1 {[%emt 0:00:09]} Nd4 {[%emt 0:00:06]} 10. Nxd4 {[%emt 0:14:10]} cxd4 {[%emt 0:00:18]} 11. Nb5 {[%emt 0:02:04]} Rc8 {[%emt 0:00:56]} 12. Nxd4 {[%emt 0:01:53]} Qxd5 {[%emt 0:00:08]} 13. Nf3 {[%emt 0:00:35]} Qc4+ {[%emt 0:00:05]} 14. Kg2 {[%emt 0:02:59]} Qxc2 {[%emt 0:00:02]} 15. d4 {[%emt 0:03:25]} Nd5 {[%emt 0:03:33]} 16. Bd2 {[%emt 0:04:24]} Qxd1 {[%emt 0:00:17]} 17. Rhxd1 {[%emt 0:00:09]} f6 {[%emt 0:03:35]} 18. Rac1 {[%emt 0:00:41]} Rxc1 {[%emt 0:01:05]} 19. Rxc1 {[%emt 0:00:12]} Kd7 {[%emt 0:00:08]} 20. Ne1 {[%emt 0:04:09]} e6 {[%emt 0:00:20]} 21. Nd3 {[%emt 0:03:05]} Bd6 {[%emt 0:02:21]} 22. Kf3 {[%emt 0:06:52]} g5 {[%emt 0:16:08]} 23. Rc4 {[%emt 0:11:40]} h5 {[%emt 0:03:37]} 24. b3 {[%emt 0:08:17]} Rg8 {[%emt 0:07:21]} 25. Kg2 {[%emt 0:08:10]} g4 {[%emt 0:02:21]} 26. h4 {[%emt 0:00:32]} Rc8 {[%emt 0:10:43]} 27. Rxc8 {[%emt 0:03:18]} Kxc8 {[%emt 0:00:01]} 28. Kf1 {[%emt 0:02:48]} Kd7 {[%emt 0:01:08]} 29. Ke2 {[%emt 0:00:25]} Kc6 {[%emt 0:00:08]} 30. Nb2 {[%emt 0:01:26]} Bc7 {[%emt 0:13:18]} 31. Nc4 {[%emt 0:02:06]} b5 {[%emt 0:04:33]} 32. Na3 {[%emt 0:04:21]} f5 {[%emt 0:07:02]} 33. Nc2 {[%emt 0:01:49]} f4 {[%emt 0:00:19]} 34. Be1 {[%emt 0:00:58]} Ne7 {[%emt 0:03:45]} 35. Nb4+ {[%emt 0:01:01]} Kd7 {[%emt 0:01:13]} 36. gxf4 {[%emt 0:01:58]} Nf5 {[%emt 0:01:49]} 37. Nd3 {[%emt 0:02:58]} Nxd4+ {[%emt 0:01:13]} 38. Kf1 {[%emt 0:00:57]} Nf3 {[%emt 0:00:37]} 39. Nc5+ {[%emt 0:00:25]} Ke7 {[%emt 0:00:16]} 40. Bb4 {[%emt 0:00:00]} a5 {[%emt 0:00:00]} 41. Na6+ {[%emt 0:09:31]} Bd6 {[%emt 0:15:56]} 42. Bxa5 {[%emt 0:00:38]} Nxh4 {[%emt 0:00:25]} 43. a4 {[%emt 0:02:48]} bxa4 {[%emt 0:00:16]} 44. bxa4 {[%emt 0:00:08]} Ng6 {[%emt 0:02:24]} 45. Bd2 {[%emt 0:05:03]} h4 {[%emt 0:05:01]} 46. a5 {[%emt 0:01:52]} h3 {[%emt 0:00:33]} 47. Kg1 {[%emt 0:00:17]} Kd7 {[%emt 0:08:27]} 48. Bb4 {[%emt 0:01:45]} Nxf4 {[%emt 0:04:13]} 49. Bxd6 {[%emt 0:01:43]} Kxd6 {[%emt 0:00:02]} 50. Nb4 {[%emt 0:00:43]} Kc5 {[%emt 0:04:12]} 51. Nc2 {[%emt 0:04:19]} Nd5 {[%emt 0:01:28]} 52. Kh2 {[%emt 0:02:31]} e5 {[%emt 0:00:38]} 53. a6 {[%emt 0:02:51]} Kb6 {[%emt 0:00:06]} 54. Ne1 {[%emt 0:01:07]} e4 {[%emt 0:01:50]} 55. f3 {[%emt 0:00:30]} gxf3 {[%emt 0:00:07]} 56. Nxf3 {[%emt 0:00:32]} Nf4 {[%emt 0:00:34]} 57. Nd2 {[%emt 0:00:23]} Kxa6 {[%emt 0:00:11]} 58. Nxe4 {[%emt 0:00:15]} 1/2-1/2

[Event "EYCC Open-U12 2019"]
[Site "Bratislava"]
[Date "2019.08.06"]
[Round "5.7"]
[White "Tobak, Mikhail"]
[Black "Strybuk, Artsiom I"]
[Result "1/2-1/2"]
[ECO "A05"]
[WhiteElo "1943"]
[BlackElo "2193"]
[Annotator "NA"]
[PlyCount "237"]
[EventDate "2019.08.02"]
[EventType "swiss"]
[EventCountry "SVK"]
[SourceTitle "playchess.com"]
[Source "ChessBase"]
[SourceQuality "1"]
[TimeControl "40/5400+30:1800+30"]

1. Nf3 {[%emt 0:00:00]} Nf6 {[%emt 0:00:00]} 2. g3 {[%emt 0:00:00]} g6 {[%emt 0:00:00]} 3. d3 {[%emt 0:00:01]} d5 {[%emt 0:00:02]} 4. Bg2 {[%emt 0:00:11]} Bg7 {[%emt 0:00:09]} 5. O-O {[%emt 0:00:14]} c5 {[%emt 0:00:33]} 6. Nbd2 {[%emt 0:00:13]} Nc6 {[%emt 0:00:29]} 7. e4 {[%emt 0:00:18]} e6 {[%emt 0:00:41]} 8. Re1 {[%emt 0:00:47]} O-O {[%emt 0:00:11]} 9. Qe2 {[%emt 0:02:52]} Re8 {[%emt 0:08:06]} 10. Nf1 {[%emt 0:03:33]} e5 {[%emt 0:00:54]} 11. N3d2 {[%emt 0:04:30]} Bg4 {[%emt 0:06:30]} 12. f3 {[%emt 0:02:22]} Be6 {[%emt 0:00:10]} 13. c3 {[%emt 0:04:08]} d4 {[%emt 0:12:30]} 14. c4 {[%emt 0:05:01]} Bh6 {[%emt 0:03:19]} 15. g4 {[%emt 0:10:11]} Nd7 {[%emt 0:03:57]} 16. Ng3 {[%emt 0:04:50]} f6 {[%emt 0:05:54]} 17. Nb3 {[%emt 0:04:31]} Bxc1 {[%emt 0:02:01]} 18. Nxc1 {[%emt 0:00:38]} Kg7 {[%emt 0:04:09]} 19. Qd2 {[%emt 0:02:30]} a6 {[%emt 0:03:12]} 20. Nce2 {[%emt 0:05:54]} b5 {[%emt 0:02:57]} 21. b3 {[%emt 0:00:42]} Qa5 {[%emt 0:04:59]} 22. Qxa5 {[%emt 0:07:38]} Nxa5 {[%emt 0:00:05]} 23. Rec1 {[%emt 0:03:13]} Nc6 {[%emt 0:00:44]} 24. Rcb1 {[%emt 0:05:15]} Nb6 {[%emt 0:03:20]} 25. a3 Reb8 {[%emt 0:02:57]} 26. Nc1 {[%emt 0:12:58]} Ra7 {[%emt 0:02:58]} 27. Rb2 {[%emt 0:01:24]} Nd7 {[%emt 0:01:48]} 28. Rc2 {[%emt 0:05:30]} Rab7 {[%emt 0:01:46]} 29. Nf1 {[%emt 0:01:24]} a5 {[%emt 0:10:48]} 30. Nd2 {[%emt 0:02:20]} a4 {[%emt 0:01:09]} 31. bxa4 {[%emt 0:03:22]} bxc4 {[%emt 0:00:37]} 32. Nxc4 {[%emt 0:00:40]} Bxc4 {[%emt 0:00:07]} 33. Rxc4 {[%emt 0:01:11]} Rb1 {[%emt 0:00:08]} 34. Rxb1 {[%emt 0:00:32]} Rxb1 {[%emt 0:00:02]} 35. Bf1 {[%emt 0:00:42]} Na5 {[%emt 0:11:20]} 36. Rc2 {[%emt 0:00:18]} Ra1 {[%emt 0:00:02]} 37. Kf2 {[%emt 0:01:05]} Rxa3 {[%emt 0:00:28]} 38. g5 {[%emt 0:00:32]} Rxa4 {[%emt 0:08:30]} 39. Bh3 {[%emt 0:00:15]} Nb8 {[%emt 0:00:32]} 40. Rxc5 {[%emt 0:00:00]} Nac6 {[%emt 0:00:00]} 41. gxf6+ {[%emt 0:21:00]} Kxf6 {[%emt 0:00:23]} 42. Kg3 {[%emt 0:01:16]} Ra3 {[%emt 0:07:53]} 43. f4 {[%emt 0:04:12]} h6 {[%emt 0:02:32]} 44. Bd7 exf4+ {[%emt 0:13:16]} 45. Kxf4 {[%emt 0:08:56]} g5+ {[%emt 0:00:37]} 46. Kg3 {[%emt 0:00:11]} Rc3 {[%emt 0:01:26]} 47. Rxc3 {[%emt 0:02:26]} dxc3 {[%emt 0:00:05]} 48. Bxc6 {[%emt 0:00:21]} Nxc6 {[%emt 0:00:03]} 49. h4 {[%emt 0:00:50]} Nd4 {[%emt 0:04:49]} 50. Kg4 {[%emt 0:01:30]} gxh4 {[%emt 0:03:24]} 51. Kxh4 {[%emt 0:00:05]} Ke5 {[%emt 0:01:17]} 52. Kh5 {[%emt 0:01:30]} Kf4 {[%emt 0:00:04]} 53. Kxh6 {[%emt 0:00:11]} Ke3 {[%emt 0:00:35]} 54. e5 {[%emt 0:00:19]} Kd2 {[%emt 0:00:46]} 55. Na2 {[%emt 0:00:06]} c2 {[%emt 0:00:05]} 56. Kg6 {[%emt 0:00:14]} Nc6 {[%emt 0:01:40]} 57. e6 {[%emt 0:00:06]} Nb4 {[%emt 0:00:50]} 58. e7 {[%emt 0:00:20]} Nxa2 {[%emt 0:00:05]} 59. e8=Q {[%emt 0:00:04]} c1=Q {[%emt 0:00:08]} 60. Qd8 {[%emt 0:00:43]} Qc6+ {[%emt 0:00:34]} 61. Qf6 {[%emt 0:00:24]} Qe8+ {[%emt 0:00:41]} 62. Qf7 {[%emt 0:00:31]} Qa8 {[%emt 0:00:49]} 63. Qb3 {[%emt 0:00:33]} Nc3 {[%emt 0:00:27]} 64. Qc4 {[%emt 0:01:17]} Nd5 {[%emt 0:00:29]} 65. Qb5 {[%emt 0:01:37]} Nf4+ {[%emt 0:00:31]} 66. Kf5 {[%emt 0:00:54]} Nxd3 {[%emt 0:00:19]} 67. Ke6 {[%emt 0:00:37]} Qg8+ {[%emt 0:00:16]} 68. Kd6 {[%emt 0:00:19]} Qg6+ {[%emt 0:00:16]} 69. Kc7 {[%emt 0:00:27]} Qg3+ {[%emt 0:00:40]} 70. Kb7 {[%emt 0:00:25]} Qd6 {[%emt 0:00:53]} 71. Qg5+ {[%emt 0:00:38]} Kc3 {[%emt 0:00:09]} 72. Qa5+ {[%emt 0:00:17]} Kd4 {[%emt 0:00:32]} 73. Qa1+ {[%emt 0:00:44]} Ke3 {[%emt 0:00:35]} 74. Qg1+ {[%emt 0:00:24]} Kd2 {[%emt 0:00:23]} 75. Qg2+ {[%emt 0:00:15]} Ke3 {[%emt 0:00:50]} 76. Qg1+ {[%emt 0:00:08]} Ke4 {[%emt 0:00:26]} 77. Qg2+ {[%emt 0:00:40]} Kd4 {[%emt 0:00:23]} 78. Qg4+ {[%emt 0:00:47]} Kc3 {[%emt 0:00:21]} 79. Qg7+ {[%emt 0:00:15]} Kb4 {[%emt 0:00:35]} 80. Ka7 {[%emt 0:01:02]} Kb5 {[%emt 0:01:02]} 81. Qb7+ {[%emt 0:01:06]} Ka5 {[%emt 0:00:09]} 82. Qb1 {[%emt 0:00:53]} Nc5 {[%emt 0:00:38]} 83. Qa2+ {[%emt 0:00:23]} Kb5 {[%emt 0:00:20]} 84. Qb2+ {[%emt 0:00:07]} Ka5 {[%emt 0:00:49]} 85. Qc3+ {[%emt 0:00:29]} Kb5 {[%emt 0:00:38]} 86. Qb2+ {[%emt 0:00:08]} Kc4 {[%emt 0:00:02]} 87. Qc2+ {[%emt 0:00:21]} Kb4 {[%emt 0:00:28]} 88. Qb1+ {[%emt 0:00:27]} Nb3 {[%emt 0:00:29]} 89. Qe4+ {[%emt 0:00:25]} Nd4 {[%emt 0:00:13]} 90. Qb1+ {[%emt 0:00:27]} Kc4 {[%emt 0:00:51]} 91. Qc1+ {[%emt 0:00:20]} Kd3 {[%emt 0:00:12]} 92. Qd1+ {[%emt 0:00:15]} Ke3 {[%emt 0:00:22]} 93. Qg1+ {[%emt 0:00:57]} Kd2 {[%emt 0:00:43]} 94. Qf2+ {[%emt 0:00:39]} Ne2 {[%emt 0:00:29]} 95. Qb6 {[%emt 0:00:14]} Qa3+ {[%emt 0:00:25]} 96. Qa6 {[%emt 0:00:17]} Qe3+ {[%emt 0:00:05]} 97. Kb7 {[%emt 0:00:29]} Nc3 {[%emt 0:00:22]} 98. Qd6+ {[%emt 0:00:30]} Kc1 {[%emt 0:00:23]} 99. Qa3+ {[%emt 0:00:39]} Kc2 {[%emt 0:00:05]} 100. Qd6 {[%emt 0:00:18]} Qe4+ {[%emt 0:00:50]} 101. Qc6 {[%emt 0:00:28]} Qb4+ {[%emt 0:00:25]} 102. Qb6 {[%emt 0:00:50]} Qe7+ {[%emt 0:01:00]} 103. Qc7 {[%emt 0:00:22]} Qh4 {[%emt 0:00:01]} 104. Qc6 {[%emt 0:00:27]} Qg4 {[%emt 0:00:35]} 105. Qd6 {[%emt 0:00:38]} Qf5 {[%emt 0:01:23]} 106. Qc6 {[%emt 0:00:41]} Kb3 {[%emt 0:00:19]} 107. Qb6+ {[%emt 0:00:49]} Nb5 {[%emt 0:00:13]} 108. Qe3+ {[%emt 0:00:53]} Ka4 {[%emt 0:00:24]} 109. Qe7 {[%emt 0:01:02]} Qd5+ {[%emt 0:01:12]} 110. Kb8 {[%emt 0:00:07]} Qd4 {[%emt 0:00:56]} 111. Qb7 {[%emt 0:00:59]} Qh8+ {[%emt 0:00:43]} 112. Qc8 {[%emt 0:00:12]} Qe5+ {[%emt 0:00:18]} 113. Ka8 {[%emt 0:00:29]} Qd5+ {[%emt 0:00:40]} 114. Kb8 {[%emt 0:00:32]} Ka5 {[%emt 0:00:30]} 115. Qc6 {[%emt 0:00:43]} Qf7 {[%emt 0:00:33]} 116. Qc5 {[%emt 0:00:33]} Qd7 {[%emt 0:00:30]} 117. Qc6 {[%emt 0:00:26]} Qd8+ {[%emt 0:00:26]} 118. Kb7 Qe7+ 119. Kb8 1/2-1/2

[Event "EYCC Open-U12 2019"]
[Site "Bratislava"]
[Date "2019.08.06"]
[Round "5.8"]
[White "Ozkan, Taha"]
[Black "De Winter, Arthur"]
[Result "1-0"]
[ECO "A48"]
[WhiteElo "2140"]
[BlackElo "1859"]
[Annotator "NA"]
[PlyCount "87"]
[EventDate "2019.08.02"]
[EventType "swiss"]
[EventCountry "SVK"]
[SourceTitle "playchess.com"]
[Source "ChessBase"]
[SourceQuality "1"]
[TimeControl "40/5400+30:1800+30"]

1. d4 {[%emt 0:00:00]} Nf6 {[%emt 0:00:00]} 2. Nf3 {[%emt 0:00:00]} g6 {[%emt 0:00:00]} 3. Nc3 {[%emt 0:00:00]} d5 {[%emt 0:00:00]} 4. Bf4 {[%emt 0:00:00]} Bg7 {[%emt 0:00:00]} 5. e3 {[%emt 0:00:00]} O-O {[%emt 0:00:00]} 6. Be2 {[%emt 0:00:00]} c5 {[%emt 0:00:00]} 7. Ne5 {[%emt 0:00:12]} cxd4 {[%emt 0:00:55]} 8. exd4 {[%emt 0:00:08]} Nc6 {[%emt 0:01:08]} 9. Qd2 {[%emt 0:00:09]} Bf5 {[%emt 0:03:09]} 10. f3 {[%emt 0:08:43]} Nd7 {[%emt 0:05:59]} 11. Nxc6 {[%emt 0:04:41]} bxc6 {[%emt 0:01:14]} 12. g4 {[%emt 0:00:39]} Be6 {[%emt 0:00:07]} 13. Na4 {[%emt 0:01:13]} f5 {[%emt 0:13:01]} 14. O-O-O {[%emt 0:07:09]} fxg4 {[%emt 0:00:42]} 15. fxg4 {[%emt 0:01:29]} Bf7 {[%emt 0:08:23]} 16. h4 {[%emt 0:07:48]} e5 {[%emt 0:00:07]} 17. dxe5 {[%emt 0:05:51]} Nxe5 {[%emt 0:00:09]} 18. h5 {[%emt 0:05:24]} d4 {[%emt 0:06:26]} 19. Bxe5 {[%emt 0:08:34]} Bxe5 {[%emt 0:00:11]} 20. hxg6 {[%emt 0:04:38]} Bxg6 {[%emt 0:00:28]} 21. Bc4+ {[%emt 0:02:09]} Kh8 {[%emt 0:00:10]} 22. Kb1 {[%emt 0:01:54]} Rf4 {[%emt 0:07:56]} 23. Bd3 {[%emt 0:07:24]} Qg5 {[%emt 0:07:39]} 24. Bxg6 {[%emt 0:08:34]} Qxg6 {[%emt 0:01:22]} 25. Nc5 {[%emt 0:04:13]} Rxg4 {[%emt 0:06:44]} 26. Nd3 {[%emt 0:02:16]} Bg7 {[%emt 0:02:25]} 27. Qa5 {[%emt 0:03:58]} Rg5 {[%emt 0:08:04]} 28. Qc7 {[%emt 0:03:03]} a5 {[%emt 0:03:30]} 29. Rhe1 {[%emt 0:04:31]} Rf8 {[%emt 0:05:01]} 30. Qd7 {[%emt 0:05:29]} c5 {[%emt 0:01:52]} 31. Qc7 {[%emt 0:00:34]} a4 {[%emt 0:02:51]} 32. a3 {[%emt 0:00:49]} Rf7 {[%emt 0:04:30]} 33. Re8+ {[%emt 0:01:17]} Rf8 {[%emt 0:00:06]} 34. Rxf8+ {[%emt 0:01:49]} Bxf8 {[%emt 0:00:07]} 35. Ne5 {[%emt 0:01:04]} Qh5 {[%emt 0:00:31]} 36. Rf1 {[%emt 0:00:46]} Rf5 {[%emt 0:00:38]} 37. Nf7+ {[%emt 0:00:34]} Kg8 {[%emt 0:00:39]} 38. Rg1+ {[%emt 0:00:09]} Bg7 {[%emt 0:00:11]} 39. Nd6 {[%emt 0:00:22]} Rf7 {[%emt 0:00:52]} 40. Nxf7 {[%emt 0:00:00]} Qxf7 {[%emt 0:00:00]} 41. Qxc5 {[%emt 0:01:35]} Qf2 {[%emt 0:00:55]} 42. Qc4+ {[%emt 0:00:35]} Kh8 {[%emt 0:00:18]} 43. Rf1 {[%emt 0:00:26]} Qxf1+ {[%emt 0:00:26]} 44. Qxf1 {[%emt 0:00:10]} 1-0

[Event "EYCC Open-U12 2019"]
[Site "Bratislava"]
[Date "2019.08.06"]
[Round "5.9"]
[White "Navumenka, Mikhei"]
[Black "Makkar, Rajat"]
[Result "0-1"]
[ECO "A34"]
[WhiteElo "2196"]
[BlackElo "2064"]
[Annotator "NA"]
[PlyCount "82"]
[EventDate "2019.08.02"]
[EventType "swiss"]
[EventCountry "SVK"]
[SourceTitle "playchess.com"]
[Source "ChessBase"]
[SourceQuality "1"]
[TimeControl "40/5400+30:1800+30"]

1. c4 {[%emt 0:00:00]} c5 {[%emt 0:00:00]} 2. Nf3 {[%emt 0:00:00]} Nf6 {[%emt 0:00:01]} 3. Nc3 {[%emt 0:00:16]} d5 {[%emt 0:00:21]} 4. cxd5 {[%emt 0:00:19]} Nxd5 {[%emt 0:00:31]} 5. g3 {[%emt 0:00:06]} Nc6 {[%emt 0:00:21]} 6. Bg2 {[%emt 0:00:10]} Nc7 {[%emt 0:00:15]} 7. O-O {[%emt 0:10:04]} e5 {[%emt 0:00:44]} 8. b3 {[%emt 0:01:53]} Be7 {[%emt 0:02:46]} 9. Bb2 {[%emt 0:00:47]} O-O {[%emt 0:03:36]} 10. d3 {[%emt 0:00:46]} f6 {[%emt 0:03:08]} 11. e3 {[%emt 0:05:47]} Bf5 {[%emt 0:08:10]} 12. d4 {[%emt 0:08:56]} cxd4 {[%emt 0:03:27]} 13. exd4 {[%emt 0:00:04]} exd4 {[%emt 0:00:54]} 14. Ne2 {[%emt 0:00:06]} d3 {[%emt 0:01:32]} 15. Ned4 {[%emt 0:02:24]} Be4 {[%emt 0:03:46]} 16. Nxc6 {[%emt 0:10:50]} bxc6 {[%emt 0:03:18]} 17. Re1 {[%emt 0:01:23]} Qd5 {[%emt 0:03:26]} 18. Nh4 {[%emt 0:15:38]} f5 {[%emt 0:02:27]} 19. Bxe4 {[%emt 0:05:20]} fxe4 {[%emt 0:01:44]} 20. Qg4 {[%emt 0:00:01]} Bf6 {[%emt 0:09:45]} 21. Nf5 {[%emt 0:03:36]} g6 {[%emt 0:00:29]} 22. Ne3 {[%emt 0:03:41]} Qf7 {[%emt 0:02:35]} 23. Nf5 {[%emt 0:01:07]} Qe6 {[%emt 0:02:59]} 24. Nh6+ {[%emt 0:01:46]} Kg7 {[%emt 0:00:48]} 25. Qxe6 {[%emt 0:04:50]} Nxe6 {[%emt 0:00:32]} 26. Bxf6+ {[%emt 0:00:01]} Kxh6 {[%emt 0:03:09]} 27. Bc3 {[%emt 0:00:02]} Ng5 {[%emt 0:01:44]} 28. Bd2 {[%emt 0:00:11]} Kh5 {[%emt 0:00:22]} 29. Bxg5 {[%emt 0:00:26]} Kxg5 {[%emt 0:00:16]} 30. Rxe4 {[%emt 0:00:08]} Rfe8 {[%emt 0:01:02]} 31. Rd4 {[%emt 0:00:57]} Rad8 {[%emt 0:01:00]} 32. Rxd8 {[%emt 0:00:01]} Rxd8 33. Rd1 {[%emt 0:00:01]} Kf5 {[%emt 0:00:22]} 34. Kf1 {[%emt 0:04:31]} Ke4 {[%emt 0:01:36]} 35. Ke1 {[%emt 0:00:02]} Kf3 {[%emt 0:02:37]} 36. Kd2 {[%emt 0:02:27]} Kxf2 {[%emt 0:00:47]} 37. Rc1 {[%emt 0:00:01]} Rd6 {[%emt 0:00:28]} 38. Rc4 {[%emt 0:00:26]} Kg2 {[%emt 0:00:28]} 39. Ra4 {[%emt 0:02:15]} Rd7 {[%emt 0:01:18]} 40. Rh4 {[%emt 0:00:00]} h5 {[%emt 0:00:00]} 41. g4 {[%emt 0:00:18]} Rd4 {[%emt 0:01:08]} 0-1

[Event "EYCC Open-U12 2019"]
[Site "Bratislava"]
[Date "2019.08.06"]
[Round "5.10"]
[White "Dudarev, Vladislav"]
[Black "Trost, Edvin"]
[Result "1/2-1/2"]
[ECO "A22"]
[WhiteElo "2137"]
[BlackElo "2069"]
[Annotator "NA"]
[PlyCount "100"]
[EventDate "2019.08.02"]
[EventType "swiss"]
[EventCountry "SVK"]
[SourceTitle "playchess.com"]
[Source "ChessBase"]
[SourceQuality "1"]
[TimeControl "40/5400+30:1800+30"]

1. c4 {[%emt 0:00:00]} e5 {[%emt 0:00:00]} 2. Nc3 {[%emt 0:00:00]} Nf6 {[%emt 0:00:00]} 3. g3 {[%emt 0:00:00]} d5 {[%emt 0:00:00]} 4. cxd5 {[%emt 0:00:00]} Nxd5 {[%emt 0:00:00]} 5. Bg2 {[%emt 0:00:00]} Nb6 {[%emt 0:00:00]} 6. Nf3 {[%emt 0:00:50]} Nc6 {[%emt 0:00:09]} 7. a3 {[%emt 0:01:05]} Be7 {[%emt 0:00:46]} 8. b4 {[%emt 0:00:16]} Be6 {[%emt 0:00:35]} 9. O-O {[%emt 0:02:49]} O-O {[%emt 0:00:10]} 10. d3 {[%emt 0:01:49]} a5 {[%emt 0:00:11]} 11. b5 {[%emt 0:02:04]} Nd4 {[%emt 0:00:29]} 12. Bb2 {[%emt 0:10:04]} f6 {[%emt 0:03:08]} 13. Nxd4 {[%emt 0:04:00]} exd4 {[%emt 0:00:33]} 14. Na4 {[%emt 0:01:47]} Bd5 {[%emt 0:01:24]} 15. Bh3 {[%emt 0:12:12]} Bf7 {[%emt 0:16:59]} 16. Rc1 {[%emt 0:01:03]} Re8 {[%emt 0:15:15]} 17. Bg2 {[%emt 0:11:47]} Rb8 {[%emt 0:02:19]} 18. Bf3 {[%emt 0:11:22]} Qd7 {[%emt 0:03:47]} 19. Nc5 {[%emt 0:01:15]} Bxc5 {[%emt 0:00:51]} 20. Rxc5 {[%emt 0:00:04]} Qd6 {[%emt 0:04:37]} 21. Rc1 {[%emt 0:05:39]} Re5 {[%emt 0:01:51]} 22. e3 {[%emt 0:07:22]} Rxb5 {[%emt 0:10:55]} 23. Bxd4 {[%emt 0:00:04]} Rb3 {[%emt 0:12:30]} 24. Be4 {[%emt 0:02:45]} Na4 {[%emt 0:02:47]} 25. Qg4 {[%emt 0:08:23]} c5 {[%emt 0:00:25]} 26. Qf5 {[%emt 0:02:46]} g6 {[%emt 0:04:18]} 27. Bxc5 {[%emt 0:01:36]} Nxc5 {[%emt 0:07:33]} 28. Qxc5 {[%emt 0:00:02]} Qxc5 {[%emt 0:00:01]} 29. Rxc5 {[%emt 0:00:01]} Rxa3 {[%emt 0:00:01]} 30. Rb1 {[%emt 0:01:34]} Rb3 {[%emt 0:00:31]} 31. Rxb3 {[%emt 0:02:14]} Bxb3 {[%emt 0:00:02]} 32. Rxa5 {[%emt 0:01:07]} b5 {[%emt 0:02:23]} 33. Ra1 {[%emt 0:01:20]} f5 {[%emt 0:01:26]} 34. Bc6 {[%emt 0:01:05]} Bc2 {[%emt 0:01:01]} 35. d4 {[%emt 0:01:04]} b4 {[%emt 0:00:21]} 36. Ra2 {[%emt 0:00:44]} Bb3 {[%emt 0:02:11]} 37. Rb2 {[%emt 0:00:25]} Bc4 {[%emt 0:00:09]} 38. d5 {[%emt 0:01:37]} b3 {[%emt 0:00:21]} 39. d6 {[%emt 0:00:24]} Kf7 {[%emt 0:00:27]} 40. d7 {[%emt 0:00:00]} Ke7 {[%emt 0:00:00]} 41. f3 {[%emt 0:09:34]} Rb6 {[%emt 0:01:55]} 42. Ba4 {[%emt 0:05:55]} Kd8 {[%emt 0:00:02]} 43. e4 {[%emt 0:01:10]} Ra6 {[%emt 0:08:46]} 44. Bxb3 {[%emt 0:00:45]} Rb6 {[%emt 0:00:16]} 45. Bxc4 {[%emt 0:00:35]} Rxb2 {[%emt 0:00:02]} 46. exf5 {[%emt 0:00:11]} Kxd7 {[%emt 0:00:56]} 47. f6 {[%emt 0:01:41]} Rc2 {[%emt 0:03:21]} 48. Bd5 {[%emt 0:02:45]} Rd2 {[%emt 0:00:13]} 49. Bc4 {[%emt 0:00:50]} Rc2 {[%emt 0:00:10]} 50. Bd5 {[%emt 0:00:10]} Rd2 {[%emt 0:00:05]} 1/2-1/2